bitfinex-derivatives/quotes_ETHF0:USTF0_20250220
["timestamp","ask_amount","ask_price","bid_price","bid_amount"]
[1740058582609,0.54456229,2742.2,2741.6,3.2078]
[1740058582810,0.72929,2742.1,2741.9,0.72931]
[1740058583108,0.54456229,2742.2,2741.9,0.72931]
[1740058583311,0.7293,2742.1,2741.9,0.72931]
[1740058583519,0.54456229,2742.2,2741.9,0.72931]
[1740058583717,0.7293,2742.1,2741.9,0.72931]
[1740058584109,0.54456229,2742.2,2741.6,5.03129]
[1740058584315,0.54456229,2742.2,2741.6,3.2078]
[1740058584513,0.54456229,2742.2,2741.9,0.72932]
[1740058584514,0.72928,2742.1,2741.9,0.72932]
[1740058584714,0.00546229,2742.2,2741.6,3.2078]
[1740058584907,0.00546229,2742.2,2742.1,0.72928]
[1740058589919,3.754,2743.3,2742.9,0.72906]
[1740058590117,3.7909,2743.7,2743.0,3.2078]
[1740058590323,0.72893,2743.5,2743.4,0.72892]
[1740058590518,3.7909,2743.7,2743.0,3.2078]
[1740058590724,0.72892,2743.5,2743.4,0.72893]
[1740058591125,0.72894,2743.4,2743.3,0.72894]
[1740058591323,0.72896,2743.3,2743.2,0.00546229]
[1740058591920,0.72913,2742.7,2742.6,0.72914]
[1740058592419,0.5354,2743.0,2742.3,3.2078]
[1740058592628,3.2078,2742.8,2742.4,0.72918]
[1740058592925,0.72915,2742.6,2742.3,3.2078]
[1740058593121,3.2078,2742.8,2742.4,0.72918]
[1740058593321,0.72917,2742.6,2742.4,0.72918]
[1740058594227,0.72917,2742.6,2742.4,0.72917]
[1740058594423,3.2078,2742.8,2742.2,0.5551]
[1740058594725,0.72914,2742.6,2742.5,0.72916]
[1740058595116,3.2078,2742.8,2742.5,0.72916]
[1740058595324,0.72914,2742.6,2742.5,0.72916]
[1740058595826,3.2078,2742.8,2742.2,0.5551]
[1740058596023,3.2078,2742.8,2742.5,0.72915]
[1740058596227,3.2078,2742.8,2742.3,3.2078]
[1740058596425,0.5354,2743.0,2742.9,0.72906]
[1740058596623,0.72906,2742.9,2742.8,0.72908]
[1740058596927,0.72906,2742.9,2742.5,1.82289]
[1740058596928,0.72909,2742.9,2742.3,5.03084]
[1740058597123,3.2078,2743.1,2742.3,3.2078]
[1740058597124,0.7291,2742.8,2742.3,3.2078]
[1740058597325,3.2078,2743.1,2742.3,3.2078]
[1740058597624,3.2078,2743.1,2742.6,3.2078]
[1740058597826,3.2078,2743.1,2742.6,0.72912]
[1740058598029,0.7291,2742.8,2742.7,0.72911]
[1740058598329,0.72907,2742.9,2742.8,0.72908]
[1740058598721,0.72907,2742.9,2742.8,0.72907]
[1740058599032,3.93683,2743.1,2743.0,0.72904]
[1740058599223,0.72904,2743.0,2742.9,0.72904]
[1740058599928,0.72907,2742.9,2742.8,0.72907]
[1740058600422,3.93682,2743.1,2743.0,0.72904]
[1740058600630,3.93681,2743.1,2743.0,0.72904]
[1740058601024,3.2078,2743.1,2743.0,0.72904]
[1740058601423,3.93681,2743.1,2743.0,0.72904]
[1740058601625,0.568,2743.2,2742.8,3.2078]
[1740058601822,3.8572,2743.6,2742.9,1.82266]
[1740058602017,0.72894,2743.4,2743.3,0.72893]
[1740058602224,0.72895,2743.4,2743.3,0.72894]
[1740058602722,3.3215,2743.6,2742.8,5.03052]
[1740058602917,0.72899,2743.2,2742.8,5.03052]
[1740058603223,0.729,2743.2,2743.1,0.729]
[1740058603628,0.72906,2742.9,2742.8,3.93688]
[1740058604129,0.72906,2742.9,2742.8,3.2078]
[1740058604330,0.72906,2742.9,2742.8,3.93689]
[1740058604525,1.82243,2743.3,2742.8,3.2078]
[1740058604932,0.72905,2743.0,2742.9,0.72906]
[1740058605430,0.72905,2743.0,2742.8,3.2078]
[1740058605431,1.82243,2743.3,2742.8,3.2078]
[1740058605729,0.72906,2742.9,2742.8,3.93688]
[1740058605926,0.72906,2742.9,2742.8,3.2078]
[1740058606126,0.72906,2742.9,2742.8,3.93689]
[1740058606331,5.03033,2743.1,2742.7,0.72911]
[1740058606524,0.72911,2742.8,2742.7,0.72911]
[1740058607130,0.72913,2742.7,2742.6,0.72913]
[1740058607829,5.03033,2743.1,2742.6,0.72914]
[1740058607830,1.82261,2743.0,2742.6,0.72914]
[1740058608028,0.5351,2742.9,2742.6,0.72913]
[1740058608227,2.35779,2742.9,2742.5,0.72917]
[1740058608425,0.72916,2742.6,2742.5,0.72917]
[1740058609034,0.72913,2742.7,2742.2,2.3782]
[1740058609329,0.72913,2742.7,2742.6,0.72914]
[1740058609828,0.5351,2742.9,2742.2,0.5551]
[1740058610033,0.72915,2742.6,2742.5,0.72916]
[1740058610228,0.72915,2742.6,2742.2,0.5551]
[1740058610229,3.2078,2742.8,2742.2,0.5551]
[1740058610430,0.72917,2742.5,2742.4,0.72917]
[1740058610826,0.72918,2742.5,2742.4,0.72918]
[1740058611029,3.7704,2742.8,2742.2,0.5551]
[1740058611228,0.72916,2742.6,2742.5,0.72916]
[1740058611431,0.72918,2742.5,2742.4,0.72917]
[1740058612028,3.7704,2742.8,2742.1,3.2078]
[1740058612227,0.72925,2742.2,2742.1,3.2078]
[1740058612533,0.72923,2742.3,2742.2,0.72924]
[1740058612827,2.737,2742.6,2742.1,3.2078]
[1740058613032,4.5599,2742.6,2742.1,3.2078]
[1740058613534,0.72923,2742.3,2742.2,0.72924]
[1740058614332,2.737,2742.6,2742.1,3.2078]
[1740058614528,4.55988,2742.6,2742.1,3.2078]
[1740058614738,0.72925,2742.2,2742.1,3.2078]
[1740058615029,0.72932,2742.0,2741.9,0.72931]
[1740058615431,0.72934,2741.9,2741.8,0.72934]
[1740058615730,0.5857,2742.1,2741.3,4.55966]
[1740058615731,0.72936,2741.8,2741.7,0.72936]
[1740058615929,0.5404,2742.0,2741.3,4.5577]
[1740058616322,0.5404,2742.0,2741.5,1.82357]
[1740058616525,0.72933,2741.9,2741.8,0.72933]
[1740058616734,0.72933,2741.9,2741.3,4.5577]
[1740058616735,0.5404,2742.0,2741.3,1.8237]
[1740058617032,0.72939,2741.7,2741.6,0.7294]
[1740058617335,0.5404,2742.0,2741.7,0.72936]
[1740058617522,0.5404,2742.0,2741.4,1.8236]
[1740058617728,0.72936,2741.8,2741.7,0.72937]
[1740058618024,0.72935,2741.9,2741.4,1.82366]
[1740058618231,0.72936,2741.8,2741.7,0.72936]
[1740058618432,0.72937,2741.8,2741.7,0.72937]
[1740058619324,0.72932,2742.0,2741.9,0.72932]
[1740058619530,0.72934,2741.9,2741.8,0.72934]
[1740058619725,0.72937,2741.8,2741.7,0.72937]
[1740058620128,5.13892,2742.1,2741.3,1.82373]
[1740058620335,0.72939,2741.7,2741.6,0.72939]
[1740058620637,5.13892,2742.1,2741.3,1.82373]
[1740058620935,3.3157,2742.1,2741.2,5.9378]
[1740058621234,0.72939,2741.7,2741.6,0.72939]
[1740058621641,0.72939,2741.7,2741.3,1.82373]
[1740058621642,0.72944,2741.5,2741.4,0.72944]
[1740058621841,0.72943,2741.6,2741.5,0.72942]
[1740058622030,0.5334,2741.9,2741.2,3.2078]
[1740058622232,3.7412,2741.9,2741.0,1.82393]
[1740058622437,0.72949,2741.4,2741.3,0.72948]
[1740058622747,1.82341,2741.8,2740.9,8.86429]
[1740058622937,3.7412,2741.9,2741.1,2.72952]
[1740058622938,0.72951,2741.2,2741.1,2.72952]
[1740058623141,5.03136,2741.6,2740.9,4.3283]
[1740058623142,1.82361,2741.5,2740.9,4.3283]
[1740058623436,0.72955,2741.1,2741.0,0.72956]
[1740058623639,0.5482,2741.4,2740.9,3.2078]
[1740058623939,0.72953,2741.2,2741.0,0.72957]
[1740058624141,0.72954,2741.1,2741.0,0.72956]
[1740058624342,0.72954,2741.1,2740.9,3.2078]
[1740058624531,0.72955,2741.1,2741.0,0.72957]
[1740058624737,0.5482,2741.4,2740.9,3.2078]
[1740058625341,0.72952,2741.2,2741.1,0.72953]
[1740058626044,0.72952,2741.2,2741.1,0.72954]
[1740058626242,0.72951,2741.2,2741.1,0.72954]
[1740058626440,0.72953,2741.2,2741.0,0.72955]
[1740058626652,0.72953,2741.2,2741.0,0.72957]
[1740058626953,0.72953,2741.2,2741.1,0.72954]
[1740058627141,0.5482,2741.4,2740.9,3.2078]
[1740058627340,0.72949,2741.3,2740.9,3.2078]
[1740058627543,0.5482,2741.4,2740.9,3.2078]
[1740058627755,0.72954,2741.2,2741.0,0.72955]
[1740058627948,0.72954,2741.2,2740.9,3.2078]
[1740058628149,0.72954,2741.2,2741.1,0.72954]
[1740058628449,0.72954,2741.2,2740.9,3.2078]
[1740058628753,0.72957,2741.0,2740.9,0.72958]
[1740058630054,1.82381,2741.2,2740.6,3.2078]
[1740058630354,0.7296,2740.9,2740.8,0.7296]
[1740058630554,3.2287,2741.2,2740.6,3.2078]
[1740058630757,0.72961,2740.9,2740.8,0.72961]
[1740058630946,0.72961,2740.9,2740.6,3.2078]
[1740058630947,3.2287,2741.2,2740.6,3.2078]
[1740058631148,0.72958,2741.0,2740.9,0.72958]
[1740058631455,0.72961,2740.9,2740.8,0.7296]
[1740058632154,5.05251,2741.2,2740.6,3.2078]
[1740058632356,0.72962,2740.9,2740.8,0.72961]
[1740058632655,0.72964,2740.8,2740.7,0.72963]
[1740058632955,0.72964,2740.8,2740.6,3.2078]
[1740058632956,3.2287,2741.2,2740.6,3.2078]
[1740058633147,0.72962,2740.9,2740.8,0.7296]
[1740058634047,0.72965,2740.8,2740.7,0.72963]
[1740058634246,0.72965,2740.7,2740.6,3.93747]
[1740058634849,0.72965,2740.7,2740.6,0.72967]
[1740058635352,5.03174,2741.0,2740.4,1.82431]
[1740058635549,0.72968,2740.7,2740.6,0.72966]
[1740058636347,5.03721236,2741.0,2740.4,1.82431]
[1740058636650,3.21327236,2741.0,2740.4,1.82431]
[1740058636851,3.21327236,2741.0,2740.9,0.72959]
[1740058637052,0.00547236,2741.0,2740.9,0.72959]
[1740058637850,3.7845,2742.2,2741.2,1.82375]
[1740058638051,1.8232,2742.1,2741.4,3.2078]
[1740058638252,0.72942,2741.6,2741.5,0.72944]
[1740058638642,0.72942,2741.6,2741.4,0.72945]
[1740058638951,0.72946,2741.4,2741.3,0.00547236]
[1740058639251,0.5824,2741.5,2741.3,0.00547236]
[1740058639743,0.00547236,2741.8,2741.3,0.00547236]
[1740058639945,0.73485236,2741.8,2741.3,0.00547236]
[1740058640947,0.72939,2741.7,2741.5,0.72942]
[1740058641148,0.72939,2741.7,2741.5,0.72943]
[1740058642148,0.00547236,2741.8,2741.7,0.72938]
[1740058643950,0.00547236,2741.8,2741.7,6.60118]
[1740058644149,2.663,2742.7,2741.8,1.82337]
[1740058644354,2.663,2742.7,2741.8,2.99147]
[1740058644553,2.663,2742.7,2742.2,0.72923]
[1740058644852,3.2078,2742.5,2741.8,2.5871]
[1740058645054,1.823,2742.4,2741.9,0.72932]
[1740058645250,1.823,2742.4,2741.7,5.8718]
[1740058645251,0.00547236,2742.4,2741.7,5.8718]
[1740058645449,0.72927,2742.2,2742.0,0.72929]
[1740058645650,0.72924,2742.3,2742.1,0.72925]
[1740058645955,0.72932,2742.0,2741.8,0.72934]
[1740058646157,1.82850236,2742.4,2741.9,0.72932]
[1740058646158,0.7293,2742.1,2741.9,0.72932]
[1740058646850,0.00547236,2742.4,2741.9,0.72932]
[1740058647244,0.72929,2742.1,2741.9,0.72932]
[1740058647850,0.00547236,2742.4,2742.0,0.72929]
[1740058648052,0.72926,2742.2,2742.0,0.72929]
[1740058648251,0.72929,2742.1,2741.7,5.8718]
[1740058648462,0.72929,2742.1,2741.9,0.72932]
[1740058648757,0.72929,2742.1,2742.0,0.7293]
[1740058649056,0.7293,2742.0,2741.9,0.72932]
[1740058649257,1.82850236,2742.4,2741.8,2.0]
[1740058649457,0.72929,2742.1,2741.9,0.72931]
[1740058649658,0.72929,2742.1,2742.0,0.7293]
[1740058650761,0.72931,2742.0,2741.9,0.72931]
[1740058650953,0.72928,2742.1,2742.0,0.72929]
[1740058651361,0.7293,2742.0,2741.9,0.72931]
[1740058651754,0.72928,2742.1,2742.0,0.72928]
[1740058652660,0.00547236,2742.4,2741.7,5.8718]
[1740058652858,0.00547236,2742.4,2742.0,5.2078]
[1740058653057,0.73468236,2742.4,2742.3,0.72922]
[1740058653251,0.72925,2742.3,2741.8,2.3923]
[1740058653453,0.00547236,2742.4,2742.1,0.72927]
[1740058653653,0.72929,2742.1,2742.0,0.72929]
[1740058653967,0.72929,2742.1,2742.0,0.7293]
[1740058654366,1.82849236,2742.4,2741.7,3.2078]
[1740058654562,0.72931,2742.0,2741.9,0.72931]
[1740058655867,0.00547236,2742.4,2741.7,3.2078]
[1740058656072,1.82315,2742.2,2741.7,3.2078]
[1740058656261,0.72934,2741.9,2741.8,0.72934]
[1740058656461,0.72934,2741.9,2741.7,3.2078]
[1740058656462,0.5334,2742.1,2741.7,3.2078]
[1740058656662,0.72933,2742.0,2741.9,0.72932]
[1740058657363,0.72934,2741.9,2741.8,0.72933]
[1740058657668,0.5334,2742.1,2741.7,3.2078]
[1740058657871,0.7293,2742.0,2741.9,0.72932]
[1740058658063,0.72934,2741.9,2741.8,0.72934]
[1740058658263,0.72936,2741.8,2741.7,3.93716]
[1740058658470,0.5334,2742.1,2741.7,3.93716]
[1740058658471,0.72934,2741.9,2741.8,0.72933]
[1740058658973,0.72934,2742.0,2741.9,0.72932]
[1740058660777,0.72935,2741.9,2741.8,0.72933]
[1740058661371,1.8234,2741.8,2741.4,3.2078]
[1740058661577,0.72942,2741.6,2741.5,0.7294]
[1740058662678,0.72946,2741.5,2741.4,0.72945]
[1740058662878,1.8234,2741.8,2741.1,5.03165]
[1740058663179,0.72942,2741.6,2741.5,0.72941]
[1740058663574,0.72942,2741.6,2741.1,5.03165]
[1740058663575,0.72931,2742.0,2741.9,0.7293]
[1740058663782,0.5334,2742.1,2742.0,0.7293]
[1740058664276,3.2078,2742.2,2742.1,0.72928]
[1740058664477,3.93706,2742.2,2742.1,0.72928]
[1740058665178,0.73468236,2742.4,2741.9,3.2078]
[1740058665475,0.00547236,2742.4,2742.2,0.72923]
[1740058665772,0.72922,2742.3,2742.2,0.72923]
[1740058666374,0.00547236,2742.4,2742.2,0.72923]
[1740058666574,0.00547236,2742.4,2741.9,3.2078]
[1740058666775,0.73468236,2742.4,2742.2,0.72922]
[1740058666974,0.00547236,2742.4,2741.9,3.2078]
[1740058667174,0.72923,2742.3,2742.2,0.72925]
[1740058667376,0.73469236,2742.4,2742.2,0.72925]
[1740058668175,0.73469236,2742.4,2741.9,3.2078]
[1740058668481,0.73469236,2742.4,2742.2,0.72924]
[1740058668681,0.73469236,2742.4,2742.3,0.72922]
[1740058669579,0.00547236,2742.4,2741.9,3.2078]
[1740058669781,0.72924,2742.3,2742.2,0.72924]
[1740058669981,0.72924,2742.3,2742.2,0.72923]
[1740058669982,0.72922,2742.3,2742.2,0.72923]
[1740058670879,0.73468236,2742.4,2742.3,0.72922]
[1740058671081,0.72923,2742.3,2742.2,0.72923]
[1740058673178,0.00547236,2742.4,2741.9,3.2078]
[1740058673478,0.73468236,2742.4,2742.3,0.72922]
[1740058674682,0.00547236,2742.4,2742.0,1.82325]
[1740058674985,0.72924,2742.3,2742.2,0.72924]
[1740058675580,0.72923,2742.3,2741.9,5.03112]
[1740058675882,0.72923,2742.3,2742.2,0.72925]
[1740058676082,0.00547236,2742.4,2741.9,5.03112]
[1740058676279,0.73469236,2742.4,2742.3,0.72922]
[1740058676885,0.00547236,2742.4,2742.3,0.72922]
[1740058677190,0.73467236,2742.4,2742.3,0.72922]
[1740058677776,0.00547236,2742.4,2742.3,0.72922]
[1740058677976,0.73467236,2742.4,2742.3,0.72922]
[1740058680486,0.00547236,2742.4,2742.3,0.72922]
[1740058681280,0.73467236,2742.4,2742.3,0.72922]
[1740058681683,0.00547236,2742.4,2742.3,0.72922]
[1740058681883,0.73467236,2742.4,2742.3,0.72922]
[1740058682388,0.00547236,2742.4,2742.0,1.82325]
[1740058682581,0.72925,2742.3,2742.2,0.72923]
[1740058683486,0.72927,2742.2,2742.1,0.72925]
[1740058683688,0.72924,2742.3,2742.2,0.72922]
[1740058684088,0.72928,2742.2,2742.1,0.72926]
[1740058685996,0.72924,2742.3,2742.2,0.72923]
[1740058687188,0.00547236,2742.4,2742.1,0.72926]
[1740058687189,0.72927,2742.2,2742.1,0.72926]
[1740058687588,0.72927,2742.2,2741.7,1.1318]
[1740058687589,0.72929,2742.1,2742.0,0.72928]
[1740058688288,0.72939,2741.7,2741.6,0.7294]
[1740058688493,0.72941,2741.6,2741.5,0.72943]
[1740058688791,3.2078,2741.9,2741.4,2.72945]
[1740058688987,3.2078,2741.9,2741.4,2.0]
[1740058688988,0.72943,2741.6,2741.4,2.0]
[1740058689189,3.2078,2741.9,2741.4,2.72944]
[1740058689390,0.72943,2741.6,2741.4,2.0]
[1740058689589,5.03116,2741.9,2741.3,3.21327236]
[1740058689785,5.03116,2741.9,2741.5,0.72943]
[1740058690095,0.72942,2741.6,2741.5,0.72943]
[1740058691995,3.2078,2741.9,2741.5,0.72943]
[1740058692296,0.72941,2741.6,2741.5,0.72943]
[1740058693293,0.72943,2741.6,2741.4,0.72944]
[1740058693487,0.72943,2741.6,2741.3,5.21327236]
[1740058693488,0.72943,2741.6,2741.5,0.72944]
[1740058693693,0.72941,2741.6,2741.5,0.72944]
[1740058694093,0.72941,2741.7,2741.3,3.21327236]
[1740058694497,0.5839,2741.8,2741.3,5.21327236]
[1740058694699,5.7668,2741.9,2741.4,1.82366]
[1740058695196,1.1372,2742.0,2741.9,0.72933]
[1740058695396,1.8665,2742.0,2741.9,0.72933]
[1740058695791,1.1372,2742.0,2741.5,1.8236]
[1740058696193,0.72933,2741.9,2741.5,1.8236]
[1740058696397,1.86651,2742.0,2741.9,0.72933]
[1740058696593,1.1372,2742.0,2741.8,0.72933]
[1740058696793,0.72933,2741.9,2741.8,0.72933]
[1740058697697,1.1372,2742.0,2741.5,1.8236]
[1740058697698,1.1372,2742.0,2741.7,3.2078]
[1740058697896,0.72934,2741.9,2741.8,0.72934]
[1740058699200,0.5896,2742.0,2741.9,0.72933]
[1740058699695,0.5896,2742.0,2741.7,1.82345]
[1740058699696,3.93706,2742.2,2742.1,0.72928]
[1740058700603,3.93706,2742.2,2741.8,2.9661]
[1740058700604,3.2078,2742.2,2741.8,1.1427]
[1740058700794,3.2078,2742.2,2741.8,3.1427]
[1740058701100,0.72931,2742.0,2741.9,0.72933]
[1740058702496,0.72931,2742.0,2741.8,1.1427]
[1740058702497,0.72929,2742.1,2742.0,0.72929]
[1740058703790,3.93706,2742.2,2742.1,0.72928]
[1740058703996,0.7293,2742.1,2742.0,0.72929]
[1740058704700,0.72928,2742.1,2742.0,0.7293]
[1740058705001,0.72931,2742.0,2741.9,0.72931]
[1740058705197,3.2078,2742.2,2741.8,1.1427]
[1740058705405,0.7293,2742.1,2742.0,0.72929]
[1740058706209,3.93705,2742.2,2742.1,0.72928]
[1740058706401,3.2078,2742.2,2742.1,0.72928]
[1740058706607,3.93705,2742.2,2742.1,0.72928]
[1740058707106,0.72928,2742.1,2742.0,0.72928]
[1740058707305,3.93707,2742.2,2742.1,0.72928]
[1740058707706,3.2078,2742.2,2741.8,2.96607]
[1740058707901,0.72933,2741.9,2741.8,2.72933]
[1740058708111,0.72936,2741.8,2741.7,3.2078]
[1740058708310,0.72936,2741.8,2741.4,0.72944]
[1740058708311,0.72945,2741.5,2741.4,0.72944]
[1740058709106,0.5709,2741.7,2741.3,0.00547236]
[1740058709309,0.72944,2741.5,2741.4,0.72944]
[1740058710905,0.72946,2741.4,2741.3,0.00547236]
[1740058711212,0.72957,2741.0,2740.9,0.00229389]
[1740058711812,1.29447,2741.0,2740.9,0.00229389]
[1740058713314,3.93735,2741.1,2740.9,0.00229389]
[1740058714510,3.2078,2741.1,2740.9,0.00229389]
[1740058714714,0.72957,2741.0,2740.9,0.00229389]
[1740058714914,1.32087,2741.0,2740.9,0.00229389]
[1740058722418,0.72962,2740.8,2740.7,0.00547236]
[1740058722615,6.45942,2740.8,2740.7,0.00547236]
[1740058722812,12.45942,2740.8,2740.7,0.00547236]
[1740058723116,12.45942,2740.8,2739.4,1.82493]
[1740058723117,0.73003,2739.3,2739.1,3.93787]
[1740058723319,0.73003,2739.3,2739.2,2.0]
[1740058723521,0.73004,2739.3,2739.0,0.73009]
[1740058723718,0.5368,2739.5,2739.3,0.73002]
[1740058723916,0.5368,2739.5,2739.0,3.2078]
[1740058724218,3.2078,2739.3,2738.3,3.2078]
[1740058724412,0.73014,2738.9,2738.4,0.73024]
[1740058724615,5.7508,2739.0,2738.3,3.2078]
[1740058724919,3.7417,2739.4,2738.8,2.0]
[1740058725320,0.73003,2739.3,2738.8,2.73014]
[1740058725619,0.73006,2739.2,2738.8,2.0]
[1740058725816,0.73006,2739.2,2738.8,2.73015]
[1740058726015,0.73006,2739.2,2738.8,2.0]
[1740058726215,6.2847,2739.4,2738.6,3.2078]
[1740058726424,0.73017,2738.8,2738.3,0.73029]
[1740058726615,0.73017,2738.8,2738.4,2.0]
[1740058726811,2.545,2739.0,2738.4,2.0]
[1740058727019,3.2078,2738.5,2737.9,3.2078]
[1740058727321,0.73027,2738.4,2737.9,3.93818]
[1740058727525,5.7568,2738.5,2737.9,5.2078]
[1740058727719,6.48704,2738.5,2738.0,1.29396]
[1740058728118,5.7568,2738.5,2738.0,0.5636]
[1740058728318,6.48704,2738.5,2738.0,1.29395]
[1740058728518,5.7568,2738.5,2738.2,0.73031]
[1740058728716,3.93805,2738.5,2738.0,3.29395]
[1740058728922,0.7303,2738.3,2738.0,2.5636]
[1740058729225,0.73037,2738.0,2737.9,3.2078]
[1740058729528,3.2078,2738.2,2737.5,5.7783]
[1740058729722,3.2078,2737.9,2737.1,3.2078]
[1740058729918,2.552,2738.1,2737.9,0.73038]
[1740058730123,2.552,2738.1,2737.4,3.2078]
[1740058730325,0.00547236,2738.2,2737.5,2.559]
[1740058730518,0.73039,2738.0,2737.6,2.0]
[1740058730720,0.73039,2738.0,2737.6,2.73046]
[1740058730920,0.00547236,2738.2,2737.6,2.73046]
[1740058731118,0.73046,2737.7,2737.4,5.7688]
[1740058731323,0.73049,2737.6,2737.2,1.30107]
[1740058731526,3.2078,2738.0,2737.3,2.0]
[1740058731720,3.2078,2737.7,2737.2,0.5705]
[1740058732020,0.73055,2737.3,2737.1,3.2078]
[1740058732225,0.5545,2737.6,2736.7,3.2078]
[1740058732426,5.7688,2737.7,2736.9,2.0]
[1740058732622,2.561,2737.7,2737.2,3.2078]
[1740058732823,3.2078,2738.0,2737.4,2.0]
[1740058733024,3.2078,2738.0,2737.3,0.5816]
[1740058733220,3.2078,2737.7,2736.8,3.2078]
[1740058733420,0.7306,2737.2,2736.8,5.93848]
[1740058733623,3.2078,2737.7,2736.9,0.73066]
[1740058733826,0.73054,2737.4,2737.0,0.73062]
[1740058734027,0.73048,2737.6,2737.2,0.73057]
[1740058734224,3.2078,2737.7,2736.8,3.2078]
[1740058734526,3.2078,2737.7,2736.8,5.2078]
[1740058734724,3.2078,2737.7,2736.9,2.0]
[1740058734924,0.73047,2737.6,2737.3,0.73054]
[1740058735119,2.573,2737.9,2737.2,3.2078]
[1740058735325,5.03393,2737.7,2736.9,3.2078]
[1740058735829,5.03393,2737.7,2736.9,3.93845]
[1740058735830,0.7306,2737.2,2736.9,3.93845]
[1740058736034,2.577,2737.5,2736.9,3.2078]
[1740058736332,0.73056,2737.3,2736.9,3.2078]
[1740058736531,0.73058,2737.3,2737.0,0.73063]
[1740058736730,0.73059,2737.2,2736.9,3.93845]
[1740058737026,2.577,2737.5,2736.9,3.2078]
[1740058737228,5.7848,2737.7,2737.3,0.73055]
[1740058737928,0.73048,2737.6,2736.9,5.7828]
[1740058738124,0.73048,2737.6,2737.4,0.73051]
[1740058738320,0.73047,2737.6,2737.4,3.93831]
[1740058738626,0.73051,2737.5,2737.3,0.73054]
[1740058738827,0.73051,2737.5,2737.3,0.73053]
[1740058739029,3.30745,2737.7,2737.5,0.73049]
[1740058739328,3.2078,2738.0,2737.4,0.7305]
[1740058739633,3.2078,2738.0,2737.2,2.5901]
[1740058739634,0.73048,2737.6,2737.2,0.5901]
[1740058739831,3.2078,2738.0,2737.4,3.2078]
[1740058740233,0.73046,2737.7,2737.5,0.73049]
[1740058740423,3.2078,2738.0,2737.4,3.2078]
[1740058740826,0.7305,2737.5,2737.4,3.2078]
[1740058741023,3.2078,2738.0,2737.5,0.73048]
[1740058741228,0.73045,2737.7,2737.4,3.2078]
[1740058741430,0.73046,2737.7,2737.4,3.2078]
[1740058741633,0.00547236,2738.2,2737.9,0.73037]
[1740058741833,0.00547236,2738.2,2737.7,3.2078]
[1740058742129,0.00547236,2738.2,2738.1,0.73034]
[1740058742732,0.00547236,2738.2,2737.8,3.1383]
[1740058742931,0.00547236,2738.2,2738.0,0.73036]
[1740058743229,0.00547236,2738.2,2737.5,0.5334]
[1740058743440,0.00547236,2738.2,2737.7,0.73043]
[1740058743441,0.73041,2737.9,2737.7,0.73043]
[1740058744039,0.73044,2737.8,2737.6,0.73046]
[1740058744229,3.2078,2738.0,2737.4,3.2078]
[1740058744436,3.2078,2738.0,2737.4,5.2078]
[1740058744737,0.5714,2737.9,2737.4,3.2078]
[1740058745437,3.93818,2738.0,2737.8,0.73041]
[1740058745639,3.2078,2738.0,2737.9,0.73039]
[1740058746231,3.2078,2738.0,2737.5,2.57]
[1740058746232,0.73046,2737.7,2737.5,5.30049]
[1740058746433,0.73046,2737.7,2737.5,0.73049]
[1740058747239,3.2078,2738.0,2737.4,3.2078]
[1740058747537,3.2078,2738.0,2737.9,0.73039]
[1740058747735,3.2078,2738.0,2737.8,0.73041]
[1740058748035,3.2078,2738.0,2737.9,0.73039]
[1740058748242,0.73044,2737.8,2737.4,3.2078]
[1740058748444,0.73044,2737.8,2737.7,0.73045]
[1740058748741,3.2078,2738.0,2737.4,3.2078]
[1740058749242,0.73041,2737.9,2737.8,0.73041]
[1740058749438,3.93819,2738.0,2737.8,0.73041]
[1740058749641,3.93819,2738.0,2737.7,0.73043]
[1740058749642,0.73039,2737.9,2737.7,0.73043]
[1740058749944,0.73046,2737.7,2737.4,3.2078]
[1740058750137,0.73046,2737.7,2737.1,2.39281]
[1740058750138,3.2078,2737.7,2737.1,3.93839]
[1740058750437,0.73058,2737.2,2737.1,3.2078]
[1740058750630,3.2078,2737.4,2736.8,3.2078]
[1740058750836,0.73056,2737.3,2736.8,3.2078]
[1740058751034,0.73056,2737.3,2737.1,0.7306]
[1740058751441,3.7721,2737.4,2737.3,0.73055]
[1740058751834,4.50264,2737.4,2737.2,0.73057]
[1740058752437,3.7721,2737.4,2737.3,0.73055]
[1740058752841,3.7721,2737.4,2736.9,0.5392]
[1740058753048,3.7721,2737.4,2736.8,3.2078]
[1740058753244,5.59846,2737.4,2736.8,3.2078]
[1740058753446,0.73066,2736.9,2736.8,3.2078]
[1740058753850,0.73066,2736.9,2736.7,3.93851]
[1740058754553,1.82639,2737.3,2736.7,3.93851]
[1740058754851,3.7721,2737.4,2735.3,21.15543]
[1740058754852,3.2078,2736.9,2735.9,3.2078]
[1740058755045,0.73082,2736.3,2736.0,2.73089]
[1740058755355,0.73086,2736.2,2736.0,2.0]
[1740058755654,0.73086,2736.2,2735.9,3.93872]
[1740058755655,3.2078,2736.6,2735.9,3.2078]
[1740058755851,3.2078,2736.6,2735.9,5.2078]
[1740058756153,0.73079,2736.5,2736.2,0.04634667]
[1740058756357,0.73079,2736.5,2736.2,0.77718667]
[1740058756556,3.2078,2736.6,2736.3,0.0498736]
[1740058756753,0.54097236,2736.7,2736.3,0.0498736]
[1740058756951,0.00547236,2736.7,2736.6,0.73074]
[1740058757151,0.5355,2737.3,2737.2,0.73058]
[1740058757655,1.26605,2737.3,2737.2,17.5498736]
[1740058757860,1.26605,2737.3,2737.2,0.0498736]
[1740058758363,0.5355,2737.3,2737.2,0.09622027]